[Event "SVK Extraliga 2017-18"]
[Site "Slovakia"]
[Date "2017.10.01"]
[Round "2"]
[White "Hlinka, Michal"]
[Black "Blaho, Stefan"]
[Result "1-0"]
[ECO "E06"]
[WhiteElo "2155"]
[BlackElo "2029"]
[Annotator "NA"]
[PlyCount "102"]
[EventDate "2017.09.30"]
[EventType "team-tourn"]
[EventCountry "SVK"]
[SourceTitle "playchess.com"]
[Source "ChessBase"]
[SourceQuality "1"]
[TimeControl "40/5400+30:1800+30"]

1. d4 {[%emt 0:00:00]} d5 {[%emt 0:00:49]} 2. Nf3 {[%emt 0:00:00]} Nf6 {[%emt 0:00:22]} 3. c4 {[%emt 0:00:00]} e6 {[%emt 0:00:06]} 4. g3 {[%emt 0:00:13]} Be7 {[%emt 0:02:54]} 5. Bg2 {[%emt 0:00:04]} O-O {[%emt 0:00:18]} 6. O-O {[%emt 0:00:19]} b6 {[%emt 0:10:41]} 7. Nc3 {[%emt 0:01:38]} Bb7 {[%emt 0:02:10]} 8. Ne5 {[%emt 0:00:27]} Qc8 {[%emt 0:05:05]} 9. cxd5 {[%emt 0:01:20]} exd5 {[%emt 0:00:38]} 10. Bf4 {[%emt 0:00:58]} Qe6 {[%emt 0:04:04]} 11. Rc1 {[%emt 0:02:33]} a6 {[%emt 0:06:24]} 12. Qb3 {[%emt 0:00:58]} Bd6 {[%emt 0:12:15]} 13. Rfe1 {[%emt 0:05:25]} Nc6 {[%emt 0:06:00]} 14. e4 {[%emt 0:22:58]} Nxd4 {[%emt 0:05:21]} 15. Qd1 {[%emt 0:00:21]} c5 {[%emt 0:00:19]} 16. exd5 {[%emt 0:00:17]} Qc8 {[%emt 0:26:47]} 17. Bg5 {[%emt 0:01:29]} Nd7 {[%emt 0:07:14]} 18. Nc4 {[%emt 0:00:32]} Bb8 {[%emt 0:03:25]} 19. Bh3 {[%emt 0:01:59]} f5 {[%emt 0:00:04]} 20. Re7 {[%emt 0:02:54]} b5 {[%emt 0:02:13]} 21. Na5 {[%emt 0:01:14]} Bd6 {[%emt 0:00:05]} 22. Re6 {[%emt 0:01:40]} Bc7 {[%emt 0:03:35]} 23. Nxb7 {[%emt 0:01:00]} Qxb7 {[%emt 0:00:00]} 24. Bg2 {[%emt 0:01:00]} Qb8 {[%emt 0:01:05]} 25. Re7 {[%emt 0:03:06]} Bd8 {[%emt 0:01:04]} 26. Qh5 {[%emt 0:02:07]} Bxe7 {[%emt 0:00:00]} 27. Bxe7 {[%emt 0:00:03]} Nf6 {[%emt 0:00:13]} 28. Qh4 {[%emt 0:01:44]} b4 {[%emt 0:00:31]} 29. Bxc5 {[%emt 0:00:39]} bxc3 {[%emt 0:00:27]} 30. Qxd4 {[%emt 0:00:04]} cxb2 {[%emt 0:00:23]} 31. Rb1 {[%emt 0:00:12]} Re8 {[%emt 0:00:27]} 32. Rxb2 {[%emt 0:00:58]} Re1+ {[%emt 0:00:11]} 33. Bf1 {[%emt 0:00:01]} Qe8 {[%emt 0:00:53]} 34. d6 {[%emt 0:00:39]} Qc6 {[%emt 0:00:46]} 35. Bb4 {[%emt 0:01:05]} Rc1 {[%emt 0:00:09]} 36. Bd2 {[%emt 0:01:20]} Rd1 {[%emt 0:00:16]} 37. Qd3 {[%emt 0:01:50]} Kh8 {[%emt 0:00:42]} 38. Qe2 {[%emt 0:03:40]} Ra1 {[%emt 0:00:04]} 39. h3 {[%emt 0:03:27]} Re8 {[%emt 0:00:03]} 40. Be3 {[%emt 0:00:22]} Qxd6 {[%emt 0:08:06]} 41. Rd2 {[%emt 0:30:30]} Qc6 42. Kh2 {[%emt 0:00:30]} Qc1 {[%emt 0:01:00]} 43. Kg2 {[%emt 0:00:30]} Qc6+ {[%emt 0:00:30]} 44. Kh2 {[%emt 0:00:30]} Qc1 {[%emt 0:00:30]} 45. Kg2 {[%emt 0:00:30]} h6 {[%emt 0:00:30]} 46. Qc4 {[%emt 0:00:30]} Qe1 {[%emt 0:00:30]} 47. Qe2 {[%emt 0:00:30]} Qc1 {[%emt 0:00:30]} 48. Qc4 {[%emt 0:00:30]} Qe1 {[%emt 0:00:30]} 49. Qe2 {[%emt 0:00:30]} Qb1 {[%emt 0:00:30]} 50. Qxa6 {[%emt 0:00:30]} Qe4+ {[%emt 0:00:30]} 51. Kh2 {[%emt 0:00:30]} Ra8 {[%emt 0:00:30]} 1-0

[Event "SVK Extraliga 2017-18"]
[Site "Slovakia"]
[Date "2017.10.01"]
[Round "2"]
[White "Szucs, Vladimir"]
[Black "Najgebauer, Szemjon"]
[Result "0-1"]
[ECO "D85"]
[WhiteElo "2125"]
[BlackElo "2202"]
[Annotator "NA"]
[PlyCount "64"]
[EventDate "2017.09.30"]
[EventType "team-tourn"]
[EventCountry "SVK"]
[SourceTitle "playchess.com"]
[Source "ChessBase"]
[SourceQuality "1"]
[TimeControl "40/5400+30:1800+30"]

1. d4 {[%emt 0:00:00]} Nf6 {[%emt 0:00:16]} 2. c4 {[%emt 0:00:03]} g6 {[%emt 0:00:10]} 3. Nc3 {[%emt 0:00:14]} d5 {[%emt 0:00:24]} 4. cxd5 {[%emt 0:00:25]} Nxd5 {[%emt 0:00:06]} 5. e4 {[%emt 0:00:04]} Nxc3 {[%emt 0:00:08]} 6. bxc3 {[%emt 0:00:03]} Bg7 {[%emt 0:00:06]} 7. Be3 {[%emt 0:00:05]} c5 {[%emt 0:00:55]} 8. Qd2 {[%emt 0:04:43]} O-O {[%emt 0:03:09]} 9. Nf3 {[%emt 0:00:09]} cxd4 {[%emt 0:03:47]} 10. cxd4 {[%emt 0:00:06]} Nc6 {[%emt 0:00:06]} 11. Rd1 {[%emt 0:01:43]} a6 {[%emt 0:11:19]} 12. d5 {[%emt 0:06:46]} Ne5 {[%emt 0:01:01]} 13. Nxe5 {[%emt 0:09:14]} Bxe5 {[%emt 0:00:10]} 14. Be2 {[%emt 0:00:29]} b5 {[%emt 0:04:19]} 15. f4 {[%emt 0:02:11]} Bc7 {[%emt 0:00:41]} 16. O-O {[%emt 0:00:45]} Bb6 {[%emt 0:02:15]} 17. Bf3 {[%emt 0:02:22]} Rb8 {[%emt 0:05:48]} 18. Rc1 {[%emt 0:07:38]} Bd7 {[%emt 0:05:34]} 19. e5 {[%emt 0:02:33]} b4 {[%emt 0:03:41]} 20. Bxb6 {[%emt 0:02:23]} Qxb6+ {[%emt 0:00:26]} 21. Qf2 {[%emt 0:00:09]} Qxf2+ {[%emt 0:05:04]} 22. Kxf2 {[%emt 0:02:34]} Rfc8 {[%emt 0:04:35]} 23. Be2 {[%emt 0:11:54]} a5 {[%emt 0:07:04]} 24. Ke3 {[%emt 0:01:00]} b3 {[%emt 0:10:07]} 25. Rxc8+ {[%emt 0:03:58]} Rxc8 {[%emt 0:00:53]} 26. axb3 {[%emt 0:00:06]} Rc3+ {[%emt 0:00:06]} 27. Bd3 {[%emt 0:14:08]} Rxd3+ {[%emt 0:03:45]} 28. Kxd3 {[%emt 0:00:46]} Bb5+ {[%emt 0:00:08]} 29. Kd4 {[%emt 0:00:21]} Bxf1 {[%emt 0:00:06]} 30. g3 {[%emt 0:00:49]} Kf8 {[%emt 0:00:32]} 31. Kc5 {[%emt 0:00:12]} Bg2 {[%emt 0:01:30]} 32. d6 {[%emt 0:00:23]} exd6+ {[%emt 0:00:22]} 0-1

[Event "SVK Extraliga 2017-18"]
[Site "Slovakia"]
[Date "2017.10.01"]
[Round "2"]
[White "Gulbis, Adrian"]
[Black "Lembak, Jurij"]
[Result "*"]
[WhiteElo "2108"]
[BlackElo "2204"]
[Annotator "NA"]
[PlyCount "20"]
[EventDate "2017.09.30"]
[EventType "team-tourn"]
[EventCountry "SVK"]
[SourceTitle "playchess.com"]
[Source "ChessBase"]
[SourceQuality "1"]
[TimeControl "40/5400+30:1800+30"]

{[%evp 17,20,17,19,11,4]} 1. d4 {[%emt 0:00:00]} d5 {[%emt 0:00:20]} 2. Nf3 {[%emt 0:00:01]} Nf6 {[%emt 0:00:14]} 3. c4 {[%emt 0:01:06]} dxc4 {[%emt 0:00:17]} 4. Nc3 {[%emt 0:01:20]} a6 {[%emt 0:04:54]} 5. a4 {[%emt 0:01:37]} e6 {[%emt 0:03:15]} 6. e3 {[%emt 0:03:26]} c5 {[%emt 0:00:27]} 7. Bxc4 {[%emt 0:01:54]} Nc6 {[%emt 0:00:45]} 8. O-O {[%emt 0:00:28]} Be7 {[%emt 0:01:27]} 9. Qe2 {[%emt 0:02:52] LiveBook: 514 Partien} cxd4 {[%emt 0:01:37]} 10. Rd1 {[%emt 0:00:34]} O-O $11 {[%emt 0:00:50]} *

[Event "SVK Extraliga 2017-18"]
[Site "Slovakia"]
[Date "2017.10.01"]
[Round "2"]
[White "Hanko, Pavol"]
[Black "Hrabusa, Matej"]
[Result "0-1"]
[ECO "D30"]
[WhiteElo "2087"]
[BlackElo "2359"]
[Annotator "NA"]
[PlyCount "62"]
[EventDate "2017.09.30"]
[EventType "team-tourn"]
[EventCountry "SVK"]
[SourceTitle "playchess.com"]
[Source "ChessBase"]
[SourceQuality "1"]
[TimeControl "40/5400+30:1800+30"]

1. d4 {[%emt 0:00:00]} Nf6 {[%emt 0:00:05]} 2. Nf3 {[%emt 0:00:00]} d5 {[%emt 0:00:05]} 3. c4 {[%emt 0:00:16]} e6 {[%emt 0:00:05]} 4. Bg5 {[%emt 0:00:52]} Bb4+ {[%emt 0:00:05]} 5. Nbd2 {[%emt 0:02:10]} dxc4 {[%emt 0:00:13]} 6. Qc2 {[%emt 0:05:09] D30: Queen's Gambit Declined: Systems without Nc3} (6. e3 b5 7. a4 c6 8. Be2 Nbd7 9. O-O Qb6 10. Qc2 Bb7 11. b3 c3 12. Nb1 c5 13. Nxc3 cxd4 14. Nxb5 Rc8 15. Qb2 a6 16. a5 Qc5 17. exd4 Qf5 18. Bd2 Be7 19. Nc3 O-O 20. Nh4 {1-0 (20) Mamedyarov,S (2800)-Inarkiev,E (2707) Geneve 2017}) 6... b5 {[%emt 0:00:41]} 7. a4 {[%emt 0:01:31]} c6 {[%emt 0:02:12]} 8. e4 {[%emt 0:02:27]} h6 {[%emt 0:06:00]} 9. Bxf6 {[%emt 0:08:07]} Qxf6 {[%emt 0:01:40]} 10. Be2 {[%emt 0:03:38]} Bb7 {[%emt 0:02:02]} 11. O-O {[%emt 0:01:10]} O-O {[%emt 0:03:07]} 12. e5 $146 {[%emt 0:08:04]} ({Predecessor:} 12. b3 cxb3 13. Nxb3 a6 14. Nc5 Bxc5 15. dxc5 Nd7 16. Rad1 Qe7 17. Rd6 e5 18. Rfd1 Nf6 19. Qd3 {½-½ (19) Onischuk,A (2655)-Kaidanov,G (2596) Chicago 2002}) 12... Qg6 {[%emt 0:09:40]} 13. Qxg6 {[%emt 0:04:53]} fxg6 {[%emt 0:00:06]} 14. Ne4 {[%emt 0:00:32]} a6 {[%emt 0:03:00]} 15. Rab1 {[%emt 0:05:43]} Nd7 {[%emt 0:08:27]} 16. b3 {[%emt 0:12:24]} cxb3 {[%emt 0:04:21]} 17. Rxb3 {[%emt 0:00:29]} c5 {[%emt 0:01:37]} 18. dxc5 {[%emt 0:03:29]} Bxc5 {[%emt 0:03:41]} 19. Nfd2 {[%emt 0:01:00]} Bd5 {[%emt 0:04:46]} 20. Rc3 {[%emt 0:11:16]} Bb4 {[%emt 0:03:20]} 21. Rc7 {[%emt 0:00:11]} Nxe5 {[%emt 0:00:29]} 22. axb5 {[%emt 0:00:13]} axb5 {[%emt 0:00:22]} 23. Bxb5 {[%emt 0:07:15]} Rfb8 {[%emt 0:02:28]} 24. f4 {[%emt 0:11:14]} Ng4 {[%emt 0:10:11]} 25. Bd3 {[%emt 0:03:09]} Ne3 {[%emt 0:01:35]} 26. Rb1 {[%emt 0:01:24] [#]} Nxg2 $19 {[%emt 0:05:12]} 27. Kxg2 {[%emt 0:01:29]} Bxd2 {[%emt 0:00:13]} 28. Rxb8+ {[%emt 0:01:42]} Rxb8 {[%emt 0:00:07]} 29. Kg3 {[%emt 0:01:34]} Rb3 {[%emt 0:01:45]} 30. Nc5 {[%emt 0:01:40]} Rc3 {[%emt 0:02:35]} 31. Kf2 {[%emt 0:01:56]} Bxf4 {[%emt 0:01:06]} 0-1

[Event "SVK Extraliga 2017-18"]
[Site "Slovakia"]
[Date "2017.10.01"]
[Round "2"]
[White "Pcola, Jaroslav"]
[Black "Zatko, Gregor"]
[Result "1-0"]
[ECO "B06"]
[WhiteElo "2083"]
[BlackElo "2205"]
[Annotator "NA"]
[PlyCount "71"]
[EventDate "2017.09.30"]
[EventType "team-tourn"]
[EventCountry "SVK"]
[SourceTitle "playchess.com"]
[Source "ChessBase"]
[SourceQuality "1"]
[TimeControl "40/5400+30:1800+30"]

1. e4 {[%emt 0:00:00]} g6 {[%emt 0:00:09]} 2. d4 {[%emt 0:00:40]} Bg7 {[%emt 0:00:04]} 3. Nc3 {[%emt 0:00:36]} d6 {[%emt 0:00:06]} 4. g3 {[%emt 0:00:42]} Nc6 {[%emt 0:00:15]} 5. Be3 {[%emt 0:05:15]} e5 {[%emt 0:04:00]} 6. dxe5 {[%emt 0:00:14]} Nxe5 {[%emt 0:00:11]} 7. f4 {[%emt 0:00:17]} Bg4 {[%emt 0:05:22]} 8. Be2 {[%emt 0:05:34]} Nc4 {[%emt 0:08:32]} 9. Bc1 {[%emt 0:02:44]} Bxe2 {[%emt 0:04:25]} 10. Ngxe2 {[%emt 0:01:27]} Ne7 {[%emt 0:01:56]} 11. Qd3 {[%emt 0:01:41]} Nb6 {[%emt 0:00:08]} 12. Be3 {[%emt 0:02:07]} c6 {[%emt 0:06:16]} 13. O-O-O {[%emt 0:03:58]} d5 {[%emt 0:01:41]} 14. Bd4 {[%emt 0:06:56]} O-O {[%emt 0:04:54]} 15. Bxg7 {[%emt 0:01:44]} Kxg7 {[%emt 0:00:03]} 16. f5 {[%emt 0:03:27]} Qd6 {[%emt 0:03:31]} 17. Rhf1 {[%emt 0:17:04]} gxf5 {[%emt 0:10:07]} 18. Qd4+ {[%emt 0:03:37]} Kg8 {[%emt 0:02:41]} 19. exf5 {[%emt 0:01:01]} f6 {[%emt 0:04:35]} 20. Qg4+ {[%emt 0:06:36]} Kh8 {[%emt 0:00:23]} 21. Rf4 {[%emt 0:00:33]} Rg8 {[%emt 0:06:50]} 22. Qf3 {[%emt 0:06:17]} Qc5 {[%emt 0:03:30]} 23. Nd4 {[%emt 0:06:01]} Nc4 {[%emt 0:00:27]} 24. Re1 {[%emt 0:04:45]} Ne5 {[%emt 0:07:18]} 25. Qh5 {[%emt 0:02:07]} Nc8 {[%emt 0:07:29]} 26. Qxh7+ {[%emt 0:05:00]} Kxh7 {[%emt 0:00:11]} 27. Rh4+ {[%emt 0:00:06]} Kg7 {[%emt 0:00:06]} 28. Ne6+ {[%emt 0:00:06]} Kf7 {[%emt 0:00:09]} 29. Rh7+ {[%emt 0:00:42]} Ke8 {[%emt 0:00:16]} 30. Nxc5 {[%emt 0:00:21]} b6 {[%emt 0:04:17]} 31. Ne6 {[%emt 0:01:33]} Rb8 {[%emt 0:00:06]} 32. Nc7+ {[%emt 0:01:43]} Kd8 {[%emt 0:01:10]} 33. Ne6+ {[%emt 0:00:01]} Ke8 {[%emt 0:00:07]} 34. Ng7+ {[%emt 0:00:46]} Kd8 {[%emt 0:01:06]} 35. Nh5 {[%emt 0:01:40]} Nf3 {[%emt 0:02:09]} 36. Nxf6 {[%emt 0:01:47]} 1-0

[Event "SVK Extraliga 2017-18"]
[Site "Slovakia"]
[Date "2017.10.01"]
[Round "2"]
[White "Magat, Jozef"]
[Black "Tropp, Oliver"]
[Result "1-0"]
[ECO "C15"]
[WhiteElo "2079"]
[BlackElo "2222"]
[Annotator "NA"]
[PlyCount "45"]
[EventDate "2017.09.30"]
[EventType "team-tourn"]
[EventCountry "SVK"]
[SourceTitle "playchess.com"]
[Source "ChessBase"]
[SourceQuality "1"]
[TimeControl "40/5400+30:1800+30"]

1. e4 {[%emt 0:00:00]} e6 {[%emt 0:00:06]} 2. d4 {[%emt 0:00:00]} d5 {[%emt 0:00:05]} 3. Nc3 {[%emt 0:00:39]} Bb4 {[%emt 0:00:06]} 4. exd5 {[%emt 0:00:56]} exd5 {[%emt 0:00:22]} 5. Bd3 {[%emt 0:00:47]} Nc6 {[%emt 0:00:38]} 6. a3 {[%emt 0:00:56]} Bxc3+ {[%emt 0:01:15]} 7. bxc3 {[%emt 0:00:04]} Nge7 {[%emt 0:00:20]} 8. Nf3 {[%emt 0:01:46]} Bg4 {[%emt 0:00:53]} 9. O-O {[%emt 0:02:01]} Qd7 {[%emt 0:03:00]} 10. Bf4 {[%emt 0:08:02]} f6 {[%emt 0:01:29]} 11. h3 {[%emt 0:08:14]} Bh5 {[%emt 0:00:52]} 12. Re1 {[%emt 0:06:37]} O-O-O {[%emt 0:04:31]} 13. a4 {[%emt 0:08:27]} g5 {[%emt 0:01:48]} 14. Bg3 {[%emt 0:04:50]} Rdg8 {[%emt 0:13:53]} 15. Qe2 {[%emt 0:08:12]} Bf7 {[%emt 0:02:45]} 16. Rab1 {[%emt 0:02:55]} Nf5 {[%emt 0:04:10]} 17. Bxf5 {[%emt 0:04:44]} Qxf5 {[%emt 0:01:25]} 18. Qb5 {[%emt 0:02:27]} Kd7 {[%emt 0:01:40]} 19. Qxb7 {[%emt 0:08:54]} Rc8 {[%emt 0:00:05]} 20. Nd2 {[%emt 0:04:25]} Rhe8 {[%emt 0:30:20]} 21. Nb3 {[%emt 0:04:28]} Ne7 {[%emt 0:04:23]} 22. Nc5+ {[%emt 0:08:01]} Kd8 {[%emt 0:00:06]} 23. Qb5 {[%emt 0:01:33]} 1-0

[Event "SVK Extraliga 2017-18"]
[Site "Slovakia"]
[Date "2017.10.01"]
[Round "2"]
[White "Szeko, Ludovit"]
[Black "Tauber, Marek"]
[Result "0-1"]
[ECO "B32"]
[WhiteElo "2042"]
[BlackElo "2129"]
[Annotator "NA"]
[PlyCount "119"]
[EventDate "2017.09.30"]
[EventType "team-tourn"]
[EventCountry "SVK"]
[SourceTitle "playchess.com"]
[Source "ChessBase"]
[SourceQuality "1"]
[TimeControl "40/5400+30:1800+30"]

1. e4 {[%emt 0:00:00]} c5 {[%emt 0:00:57]} 2. Nf3 {[%emt 0:00:00]} Nc6 {[%emt 0:00:16]} 3. d4 {[%emt 0:00:00]} cxd4 {[%emt 0:00:07]} 4. Nxd4 {[%emt 0:00:03]} e5 {[%emt 0:00:59]} 5. Nb5 {[%emt 0:01:11]} a6 {[%emt 0:00:11]} 6. N5c3 {[%emt 0:03:13]} Nf6 {[%emt 0:00:10]} 7. a4 {[%emt 0:00:38]} Bb4 {[%emt 0:12:33]} 8. Bc4 {[%emt 0:00:14]} O-O {[%emt 0:00:29]} 9. O-O {[%emt 0:00:31]} h6 {[%emt 0:06:46]} 10. Be3 {[%emt 0:00:56]} d6 {[%emt 0:02:18]} 11. Qe2 {[%emt 0:01:59]} Bg4 {[%emt 0:09:58]} 12. f3 {[%emt 0:00:20]} Be6 {[%emt 0:00:02]} 13. Rd1 {[%emt 0:00:32]} Nd4 {[%emt 0:09:56]} 14. Bxd4 {[%emt 0:02:03]} exd4 {[%emt 0:00:02]} 15. Na2 {[%emt 0:00:57]} Bc5 {[%emt 0:00:56]} 16. Bd3 {[%emt 0:00:38]} Nh5 {[%emt 0:07:45]} 17. g3 {[%emt 0:05:30]} Qg5 {[%emt 0:07:57]} 18. Qg2 {[%emt 0:03:34]} f5 {[%emt 0:09:24]} 19. exf5 {[%emt 0:02:19]} Bxf5 {[%emt 0:00:01]} 20. f4 {[%emt 0:01:37]} Qg4 {[%emt 0:00:53]} 21. Nd2 {[%emt 0:01:01]} Nf6 {[%emt 0:02:56]} 22. Re1 {[%emt 0:03:29]} Rae8 {[%emt 0:00:19]} 23. b4 {[%emt 0:04:31]} Ba7 {[%emt 0:01:17]} 24. Qxb7 {[%emt 0:00:23]} Bb8 {[%emt 0:03:28]} 25. Qf3 {[%emt 0:01:50]} Qg6 {[%emt 0:02:01]} 26. b5 {[%emt 0:01:11]} axb5 {[%emt 0:01:04]} 27. axb5 {[%emt 0:00:19]} d5 {[%emt 0:00:02]} 28. Nb4 {[%emt 0:00:49]} Be4 {[%emt 0:00:39]} 29. Nc6 {[%emt 0:05:46]} Bd6 {[%emt 0:04:15]} 30. f5 {[%emt 0:05:46]} Qg5 {[%emt 0:04:10]} 31. Nxe4 {[%emt 0:02:34]} dxe4 {[%emt 0:01:20]} 32. Bxe4 {[%emt 0:00:57]} Nxe4 {[%emt 0:04:19]} 33. Rxe4 {[%emt 0:00:11]} Rxe4 {[%emt 0:00:30]} 34. Qxe4 {[%emt 0:00:17]} Qxf5 {[%emt 0:00:19]} 35. Qxf5 {[%emt 0:04:21]} Rxf5 {[%emt 0:00:01]} 36. Rb1 {[%emt 0:00:11]} Bc5 {[%emt 0:00:15]} 37. Kg2 {[%emt 0:00:08]} Rf6 {[%emt 0:01:38]} 38. Rd1 {[%emt 0:02:25]} Bb6 {[%emt 0:04:56]} 39. Nxd4 {[%emt 0:09:08]} Rd6 {[%emt 0:00:10]} 40. c3 {[%emt 0:00:03]} Rd5 {[%emt 0:31:59]} 41. Rb1 {[%emt 0:30:50]} Kf7 {[%emt 0:02:42]} 42. Kf3 {[%emt 0:01:16]} Ke7 {[%emt 0:00:00]} 43. Ke4 {[%emt 0:00:00]} Rg5 {[%emt 0:00:00]} 44. Kd3 {[%emt 0:00:00]} Kd6 {[%emt 0:00:00]} 45. Kc4 {[%emt 0:00:00]} g6 {[%emt 0:00:00]} 46. Rf1 {[%emt 0:00:00]} Rg4 {[%emt 0:00:51]} 47. Rf7 {[%emt 0:00:00]} h5 {[%emt 0:01:09]} 48. Rf6+ {[%emt 0:00:00]} Kc7 {[%emt 0:00:06]} 49. Rf4 {[%emt 0:00:00]} Rxf4 {[%emt 0:01:54]} 50. gxf4 {[%emt 0:00:00]} Kd6 {[%emt 0:00:19]} 51. Kd3 {[%emt 0:00:00]} Kd7 {[%emt 0:01:03]} 52. h3 {[%emt 0:00:00]} Kd6 {[%emt 0:00:29]} 53. c4 {[%emt 0:00:00]} Ba5 {[%emt 0:00:33]} 54. Nb3 {[%emt 0:00:00]} Bd8 {[%emt 0:00:23]} 55. Ke4 {[%emt 0:00:00]} g5 {[%emt 0:00:35]} 56. c5+ {[%emt 0:00:00]} Ke6 {[%emt 0:00:36]} 57. Nd4+ {[%emt 0:00:00]} Kd7 {[%emt 0:00:30]} 58. fxg5 {[%emt 0:00:00]} Bxg5 {[%emt 0:00:21]} 59. Kd5 {[%emt 0:00:00]} Bd8 {[%emt 0:01:11]} 60. b6 {[%emt 0:00:00]} 0-1

[Event "SVK Extraliga 2017-18"]
[Site "Slovakia"]
[Date "2017.10.01"]
[Round "2"]
[White "Casal Martin, Jose M"]
[Black "Haring, Viktor"]
[Result "1-0"]
[ECO "B56"]
[WhiteElo "1473"]
[BlackElo "2297"]
[Annotator "NA"]
[PlyCount "109"]
[EventDate "2017.09.30"]
[EventType "team-tourn"]
[EventCountry "SVK"]
[SourceTitle "playchess.com"]
[Source "ChessBase"]
[SourceQuality "1"]
[TimeControl "40/5400+30:1800+30"]

1. e4 {[%emt 0:00:00]} c5 {[%emt 0:00:16]} 2. Nf3 {[%emt 0:00:00]} d6 {[%emt 0:00:47]} 3. d4 {[%emt 0:00:00]} cxd4 {[%emt 0:00:11]} 4. Nxd4 {[%emt 0:00:00]} Nf6 {[%emt 0:01:21]} 5. Nc3 {[%emt 0:00:00]} Nc6 {[%emt 0:00:24]} 6. g3 {[%emt 0:02:42]} g6 {[%emt 0:06:37]} 7. Bg2 {[%emt 0:00:54]} Nxd4 {[%emt 0:07:26]} 8. Qxd4 {[%emt 0:00:06]} Bg7 {[%emt 0:00:10]} 9. O-O {[%emt 0:08:29]} O-O {[%emt 0:00:22]} 10. a4 {[%emt 0:08:53]} Bd7 {[%emt 0:05:12] B70: Sicilian Dragon: 6 g3 and 6 Be2 (without a later Be3)} (10... Be6 11. Qb4 a5 12. Qxb7 Nd7 13. Qb5 Rc8 14. Rd1 Ne5 15. Qe2 Nc4 16. Rb1 Nxb2 17. Bxb2 Bxc3 18. e5 {½-½ (94) Spangenberg,H (2487)-Mekhitarian,K (2570) Buenos Aires 2015}) 11. a5 {[%emt 0:04:27]} Bc6 {[%emt 0:20:51]} 12. Qb4 {[%emt 0:00:43]} Nd7 $146 {[%emt 0:04:34]} ({Predecessor:} 12... Qc8 13. h3 Rd8 14. Rd1 Rd7 15. Kh2 Rc7 16. Be3 h5 17. Rd2 {1-0 (32) Cosma,E (2330)-Calzetta Ruiz,M (2130) Kishinev 1995}) 13. Re1 {[%emt 0:02:40]} b6 {[%emt 0:05:42]} 14. Nd5 {[%emt 0:03:32]} Bxd5 {[%emt 0:07:29]} 15. exd5 {[%emt 0:00:48]} bxa5 {[%emt 0:00:16]} 16. Rxa5 {[%emt 0:00:48]} Rb8 {[%emt 0:02:31]} 17. Rb5 {[%emt 0:02:48]} Ne5 {[%emt 0:15:59]} 18. Rxb8 {[%emt 0:10:43]} Qxb8 {[%emt 0:00:14]} 19. Qxb8 {[%emt 0:00:05]} Rxb8 {[%emt 0:00:14]} 20. f4 {[%emt 0:00:15]} Ng4 {[%emt 0:04:45]} 21. h3 {[%emt 0:02:22]} Bd4+ {[%emt 0:00:46]} 22. Kf1 {[%emt 0:00:24]} Nf6 {[%emt 0:03:47]} 23. c3 {[%emt 0:00:30]} Bc5 {[%emt 0:00:36]} 24. g4 {[%emt 0:04:12]} Kf8 {[%emt 0:01:45]} 25. Bf3 {[%emt 0:01:28]} a5 {[%emt 0:01:40]} 26. Ke2 $14 {[%emt 0:09:53]} Rb5 {[%emt 0:06:31]} 27. Kd1 {[%emt 0:05:23]} Ba7 {[%emt 0:01:28]} 28. g5 {[%emt 0:00:34]} Nd7 {[%emt 0:01:44]} 29. Kc2 {[%emt 0:00:13]} a4 {[%emt 0:00:43]} 30. h4 {[%emt 0:07:02]} Nc5 {[%emt 0:00:35]} 31. h5 {[%emt 0:01:36]} Nb3 {[%emt 0:00:21]} 32. Re4 {[%emt 0:04:50]} Nc5 {[%emt 0:00:38]} 33. Rc4 {[%emt 0:00:36]} Ra5 {[%emt 0:00:13]} 34. h6 {[%emt 0:01:14]} Ke8 {[%emt 0:00:38]} 35. Rb4 {[%emt 0:00:35]} Kd8 {[%emt 0:00:36]} 36. Be3 {[%emt 0:14:14]} Na6 {[%emt 0:00:29]} 37. Bb6+ {[%emt 0:00:26]} Bxb6 {[%emt 0:00:06]} 38. Rxb6 {[%emt 0:00:02]} Kc7 {[%emt 0:00:55]} 39. Rc6+ {[%emt 0:00:30]} Kb7 {[%emt 0:00:06]} 40. Rc4 {[%emt 0:01:40]} Nc5 {[%emt 0:30:13]} 41. f5 {[%emt 0:33:50]} a3 {[%emt 0:00:00]} 42. bxa3 {[%emt 0:00:00]} Rxa3 {[%emt 0:00:00]} 43. Rxc5 {[%emt 0:00:00]} dxc5 {[%emt 0:00:00]} 44. d6+ {[%emt 0:00:00]} Kc8 {[%emt 0:00:00]} 45. dxe7 {[%emt 0:00:00]} Kd7 {[%emt 0:00:00]} 46. f6 {[%emt 0:00:00]} Ra6 {[%emt 0:00:00]} 47. Bd5 {[%emt 0:00:00]} Ke8 {[%emt 0:00:00]} 48. Kd3 {[%emt 0:00:00]} Rd6 {[%emt 0:00:00]} 49. Kc4 {[%emt 0:00:00]} Rd7 {[%emt 0:00:00]} 50. Be4 {[%emt 0:00:00]} Rc7 {[%emt 0:00:00]} 51. Bd5 {[%emt 0:00:00]} Rc8 {[%emt 0:00:26]} 52. Kb5 {[%emt 0:00:00]} c4 {[%emt 0:00:12]} 53. Bxc4 {[%emt 0:00:00]} Rc7 {[%emt 0:01:10]} 54. Kb4 {[%emt 0:00:00]} Rc6 {[%emt 0:00:05]} 55. Bb5 {[%emt 0:00:00]} 1-0